{"text_format":"2","workbook":"xlsx","n_sheets":4,"sheets":["Összesítő","Építészet - Kerékpár tároló","Portásfülke bekötése - Gépészet","Munka3"],"not_rendered":{"charts":0,"images":0,"macros":0,"external_links":0,"defined_names":0,"comments":0,"pivot_tables":0},"unopened":[],"bounds":{"document_bytes":16777216,"sheet_cells":100000,"run_cost":"one","rows_first":2000,"rows_last":500,"rows_between":2000,"halvings":0,"cell_chars":16384,"cell_head_chars":4096},"cells_cut":0,"cells_raw":0,"read":"whole","date_system":"1900"}

{"sheet":"Összesítő","index":0,"n_rows":22,"n_cols":3,"rows_kept":22,"cut":false,"hidden":false,"merged":[[3,0,3,2],[4,0,4,2],[1,0,1,2],[2,0,2,2],[0,0,0,2]]}
["SZTE SZENT-GYÖRGYI ALBERT KLINIKAI KÖZPONT "]
["6725 SZEGED, KÁLVÁRIA SGT. 57. HRSZ.:22542"]
["MEGRENDELŐ: SZEGEDI TUDOMÁNYEGYETEM"]
["6720 SZEGED, DUGONICS TÉR 13."]
[]
[]
["Munkanem megnevezése","Anyag összege","Díj összege"]
["Kerékpártároló áthelyezése",0,0]
["Portásfülke csatorna bekötése",0,0]
[]
["Összesen:",{"$f":"SUM(B8:B10)","v":0},{"$f":"SUM(C8:C10)","v":0}]
[]
[null,null,{"$f":"+B11+C11","v":0}]
[]
[]
["NETTÓ ÖSSZESEN:",null,{"$f":"C13","v":0}]
["ÁFA (27%)",null,{"$f":"+C16*0.27","v":0}]
["BRUTTÓ ÖSSZESEN:",null,{"$f":"+C17+C16","v":0}]
[]
[]
[]
["Szeged, 2014. "]

{"sheet":"Építészet - Kerékpár tároló","index":1,"n_rows":19,"n_cols":8,"rows_kept":19,"cut":false,"hidden":false,"merged":[[0,0,0,7],[1,0,1,7]]}
["1. számú pótmunka árajánlat "]
["SZTE Szent-Györgyi Albert Klinikai Központ- kerékpártároló áthelyezése "]
["Ssz.","Tétel szövege","Menny.","Egység","Anyag egységár","Díj egységre","Anyag összesen","Díj összesen"]
["1.","Kerékpártátoló szerkezetének bontása elemekre",1,"ktg.",0,0,{"$f":"C4*E4","v":0},{"$f":"C4*F4","v":0}]
["2.","Kerítésoszlop megtámasztása acél oszlopokkal, betonozva",1,"ktg.",0,0,{"$f":"C5*E5","v":0},{"$f":"C5*F5","v":0}]
["3.","Vasbeton fal bontása, Monolit vasbeton  kerítésfal  (két telek közt ) bontása gépi erővel",11,"m3",0,0,0,0]
["4.","Bontási törmelék felrakása szállítóeszközre, géppel, szállítás lerakóhelyre, lerakóhelyi díjjal",11,"m3",0,0,0,0]
["5.","Tükörkészítés térbeton és járda részére,  25 cm mélységig rézsüs kialakítással",21,"m3",0,0,0,0]
["6.","Fejtett föld felrakása szállítóeszközre, géppel, elszállítása lerakóhelyre, lerakóhelyi díjjal talajosztály I-IV.",21,"m3",0,0,0,0]
["7.","Feltöltések alap- és lábazati falak közé és alagsori vagy alá nem pincézett földszinti padozatok alá, az anyag szétterítésével, mozgatásával, kézi döngöléssel, osztályozatlan kavicsból, térbeton és járda alá",13,"m3",0,0,0,0]
["8.","Járda készítése, homokágyazatra fektetve, járdalap 40x40x4 cm-es méretben, kétoldalt szegéllyel szürke",14,"m2",0,0,0,0]
["9.","Térháló elhelyezése(6,0/6,0/15/15/2,15/5,00)",9,"db",0,0,0,0]
["10.","Vasbeton lemezalap készítése min. C16-os szilárdságú betonból",9,"m3",0,0,0,0]
["11.","Kerékpártátoló szerkezetének összeszerelése",1,"ktg.",0,0,0,0]
["12.","Fakivágás",3,"db",0,0,0,0]
["13.",{"$nulls":5},0,0]
[{"$nulls":6},0,0]
[null,"Munkanem összesen:",{"$nulls":4},{"$f":"SUM(G4:G17)","v":0},{"$f":"SUM(H4:H17)","v":0}]
[{"$nulls":7},{"$f":"SUM(G18+H18)","v":0}]

{"sheet":"Portásfülke bekötése - Gépészet","index":2,"n_rows":25,"n_cols":9,"rows_kept":25,"cut":false,"hidden":false,"merged":[[6,0,6,8],[24,7,24,8],[0,0,0,2],[1,0,1,8],[2,0,2,6],[3,0,3,8],[4,0,4,8],[5,0,5,8]]}
["PROJEKT MEGNEVEZÉSE"]
["SZTE SZENT-GYÖRGYI ALBERT KLINIKAI KÖZPONT PSZICHIÁTRIAI KLINIKA PSZICHIÁTRIAI ÉS ADDIKTOLÓGIAI REHABILITÁCIÓS MODUL ÉPÜLET BŐVÍTÉS ÉS ÁTALAKÍTÁS"]
["6725 SZEGED, KÁLVÁRIA SGT. 57. HRSZ.:22542"]
["MEGRENDELŐ"]
["SZEGEDI TUDOMÁNYEGYETEM"]
["6720 SZEGED, DUGONICS TÉR U. 13."]
["PSZICHIÁTRIA, Portásfülke szennyvíz csatlakoztatása"]
[]
["Ssz.","Tételszám","Tétel szövege","Menny.","Egység","Anyag egységár","Díj egységre","Anyag összesen","Díj összesen"]
[]
["1.","21-003-5.2.1.2.1","Munkaárok földkiemelése közművesített területen, kézi erővel, bármely konzisztenciájú talajban, dúcolt árokból, 3,0 m árokszélességig, talajosztály: III. 2,0  m mélységig",20,"m3",0,0,{"$f":"ROUND(D11*F11, 0)","v":0},{"$f":"ROUND(D11*G11, 0)","v":0}]
["2.","21-003-11.1.1","Földvisszatöltés munkagödörbe vagy munkaárokba, tömörítés nélkül, réteges elterítéssel, I-IV. osztályú talajban, kézi erővel, az anyag súlypontja karoláson belül, a vezeték (műtárgy) felett és mellett 50 cm vastagságig",13,"m3",0,0,{"$f":"ROUND(D12*F12, 0)","v":0},0]
["3.","21-004-4.1.1-0133651","Talajjavító réteg készítése, útépítésnél, 3,00 m szélességig vagy építményen belül, homokból.",4.5,"m3",0,0,0,0]
["4.","21-008-2.3.1","Tömörítés bármely tömörítési osztályban gépi erővel, vezeték felett és mellett, tömörségi fok: 85%",15,"m3",0,0,0,0]
["5.","21-012-1.2.123","Kiszorult föld felrakása szállítóeszközre, géppel, talajosztály I-IV. lerakóhelyre szállítva ",7,"m3",0,0,0,0]
["6.","53-001-31.2.1-0131502","Egyoldalon tokos műanyag csatornacső beépítése földárokba, gumigyűrűs kötéssel, csőidomok nélkül, KG-PVC tokos csatornacső,  110x3.2 mm",40,"m",0,0,0,0]
["7.","53-005-32.90-0000999","Műanyag tisztító akna elhelyezése, öntöttvas fedlappal,  elágazó aknafenékelemmel",1,"db",0,0,0,0]
["8.","53-009-1.1","Csatornák vízzárósági próbája, vízzel, átm. 30 cm átmérőig.",40,"m",0,0,0,0]
["9.","K-tétel","Meglévő, megmaradó vezetékek rákötéséhez fejgödrök kiásása",2,"db",0,0,{"$f":"ROUND(D19*F19, 0)","v":0},{"$f":"ROUND(D19*G19, 0)","v":0}]
["10.","81-01-001-0000116","Aszfalt bontás",14,"m2    ",{"$f":"+K20*$K$2","v":0},0,{"$f":"D20*F20","v":0},{"$f":"D20*G20","v":0}]
[]
[null,null,"nettó összesen:",{"$nulls":4},{"$f":"SUM(H11:H21)","v":0},{"$f":"SUM(I11:I21)","v":0}]
[null,null,"ÁFA 27%",{"$nulls":4},{"$f":"H22*0.27","v":0},{"$f":"I22*0.27","v":0}]
[null,null,"összesen:",{"$nulls":4},{"$f":"H22+H23","v":0},{"$f":"I22+I23","v":0}]
[null,null,"mindösszesen:",{"$nulls":4},{"$f":"H24+I24","v":0}]

{"sheet":"Munka3","index":3,"n_rows":0,"n_cols":0,"rows_kept":0,"cut":false,"hidden":false,"merged":[]}